bitfinex-derivatives/quotes_BNBF0:USTF0_20250401
["timestamp","ask_amount","ask_price","bid_price","bid_amount"]
[1743477276762,0.58749915,609.89,607.67,1.944126]
[1743477276956,0.30173677,609.88,607.67,1.944126]
[1743477282670,0.28576238,609.87,607.67,1.944126]
[1743477282870,0.30173677,609.86,607.67,1.944126]
[1743477285568,0.30173677,609.85,607.67,1.944126]
[1743477285873,0.30173677,609.84,607.67,1.944126]
[1743477288668,0.32785272,610.03,607.67,1.944126]
[1743477288669,0.28576708,609.83,607.67,1.944126]
[1743477289076,0.30173677,609.82,607.67,1.944126]
[1743477291575,0.30173677,609.81,607.67,1.944126]
[1743477291773,0.30173677,609.8,607.67,1.944126]
[1743477292376,0.28576942,609.81,607.67,1.944126]
[1743477292579,0.30174189,609.8,607.67,1.944126]
[1743477294879,0.28577177,609.79,607.67,1.944126]
[1743477295080,0.30174189,609.78,607.67,1.944126]
[1743477295682,2.51363342,609.77,607.67,1.944126]
[1743477295882,0.30174189,609.76,607.67,1.944126]
[1743477297075,2.51363342,609.77,607.67,1.944126]
[1743477297279,0.301737,609.76,607.67,1.944126]
[1743477297682,2.51363342,609.74,607.67,1.944126]
[1743477297878,0.301737,609.73,607.67,1.944126]
[1743477299084,2.51363342,609.69,607.68,2.50341695]
[1743477299280,0.301737,609.68,607.78,0.32906643]
[1743477300889,0.28578468,609.67,607.78,0.32906643]
[1743477301187,0.301737,609.66,607.78,0.32906643]
[1743477301384,2.51363342,609.68,607.78,0.32906643]
[1743477301690,0.28578585,609.65,607.78,0.32906643]
[1743477301889,0.30173858,609.64,607.78,0.32906643]
[1743477302189,0.30173858,609.64,607.78,0.73506643]
[1743477302389,0.30173858,609.64,607.78,1.39906643]
[1743477302585,0.30173858,609.64,607.78,1.94406643]
[1743477303787,0.58751387,609.63,607.78,1.94406643]
[1743477303986,0.30173858,609.62,607.78,1.94406643]
[1743477304591,0.30173693,609.61,607.78,1.94406643]
[1743477304792,0.30173693,609.6,607.78,1.94406643]
[1743477304988,0.30173693,609.62,607.78,1.94406643]
[1743477305293,0.30173693,609.61,607.78,1.94406643]
[1743477305493,0.30173693,609.6,607.78,1.94406643]
[1743477305693,0.30173693,609.62,607.78,1.94406643]
[1743477305895,0.30173693,609.61,607.78,1.94406643]
[1743477306191,0.30173693,609.6,607.78,1.94406643]
[1743477306393,0.30173693,609.62,607.78,1.94406643]
[1743477306694,0.28577764,609.59,607.78,1.94406643]
[1743477306892,0.30173693,609.58,607.78,1.94406643]
[1743477309594,0.30173693,609.57,607.78,1.94406643]
[1743477309791,0.30173693,609.56,607.78,1.94406643]
[1743477312701,0.58751926,609.55,607.78,3.83218801]
[1743477312900,0.30173693,609.54,607.78,3.83218801]
[1743477313900,0.30173693,609.54,607.78,1.94406643]
[1743477315802,0.30173693,609.53,607.78,1.94406643]
[1743477316106,0.30173693,609.52,607.78,1.94406643]
[1743477317198,0.30173447,609.51,607.78,1.94406643]
[1743477317399,0.2857835,609.53,607.78,1.94406643]
[1743477318200,0.2857835,609.53,607.78,4.64090166]
[1743477318405,2.51363342,609.66,607.78,6.52902324]
[1743477318606,0.3017124,609.65,607.79,1.88812158]
[1743477318802,0.30171247,609.64,607.79,1.88812158]
[1743477319006,0.30171247,609.64,607.81,0.32905019]
[1743477321205,0.2857483,609.65,607.81,0.32905019]
[1743477321406,2.51363342,609.84,607.81,0.32905019]
[1743477321708,0.28572602,609.64,607.81,0.32905019]
[1743477321908,0.28572602,609.64,607.81,0.73505019]
[1743477322105,2.51363342,609.84,607.81,0.73505019]
[1743477322410,0.28572602,609.63,607.81,0.73505019]
[1743477322707,2.51363342,609.84,607.81,0.73505019]
[1743477322909,0.2857225,609.62,607.81,0.73505019]
[1743477323310,2.51363342,609.84,607.81,0.73505019]
[1743477323510,0.2857225,609.61,607.81,0.73505019]
[1743477323810,2.51363342,609.84,607.81,0.73505019]
[1743477324011,0.30169988,609.83,607.81,0.73505019]
[1743477324211,0.28572132,609.6,607.81,0.73505019]
[1743477324409,2.51363342,610.01,607.81,0.73505019]
[1743477324610,0.30169988,610.0,607.81,0.73505019]
[1743477324806,0.28569552,609.59,607.81,0.73505019]
[1743477325209,2.51363342,610.01,607.81,0.73505019]
[1743477325410,0.28569435,609.58,607.81,0.73505019]
[1743477325806,2.51363342,610.05,607.81,0.73505019]
[1743477326009,0.28569552,609.57,607.81,0.73505019]
[1743477326407,2.51363342,610.05,607.81,0.73505019]
[1743477326609,0.28569318,609.56,607.81,0.73505019]
[1743477327010,2.51363342,610.05,607.81,0.73505019]
[1743477327309,0.285692,609.55,607.81,0.73505019]
[1743477327614,2.51363342,610.05,607.81,0.73505019]
[1743477327817,0.28569318,609.54,607.81,0.73505019]
[1743477328213,2.51363342,610.05,607.81,0.73505019]
[1743477328414,0.28569318,609.53,607.81,0.73505019]
[1743477328817,2.51363342,610.06,607.81,0.73505019]
[1743477329017,0.285692,609.52,607.81,0.73505019]
[1743477329416,2.51363342,610.06,607.81,0.73505019]
[1743477329617,0.285692,609.51,607.81,0.73505019]
[1743477330016,2.51363342,610.06,607.81,0.73505019]
[1743477330217,0.285692,609.5,607.81,0.73505019]
[1743477330618,2.51363342,610.06,607.81,0.73505019]
[1743477330919,0.285692,609.49,607.81,0.73505019]
[1743477331119,2.51363342,610.08,607.81,0.73505019]
[1743477331320,0.30168547,610.02,607.81,0.73505019]
[1743477331519,0.28569318,609.48,607.81,0.73505019]
[1743477331814,2.51363342,610.08,607.81,0.73505019]
[1743477332017,0.28569318,609.47,607.81,0.73505019]
[1743477332418,2.51363342,610.06,607.81,0.73505019]
[1743477332618,0.285692,609.46,607.81,0.73505019]
[1743477333018,2.51363342,610.06,607.81,0.73505019]
[1743477333423,0.30168569,610.02,607.81,1.27905019]
[1743477334325,0.285692,610.01,607.81,1.27905019]
[1743477334623,0.30168569,610.0,607.81,1.27905019]
[1743477336724,2.51363342,610.08,607.81,1.27905019]
[1743477336725,0.58739411,609.99,607.81,1.27905019]
[1743477337025,0.30168569,609.98,607.81,1.27905019]
[1743477338127,0.30170553,609.97,607.81,1.27905019]
[1743477338425,0.30170553,609.96,607.81,1.27905019]
[1743477338626,0.30170553,609.98,607.81,1.27905019]
[1743477338828,0.30170553,609.97,607.81,1.27905019]
[1743477339028,0.30170553,609.96,607.81,1.27905019]
[1743477339228,0.30170553,609.95,607.81,1.27905019]
[1743477339430,0.30170553,609.94,607.81,1.27905019]
[1743477339726,0.30170553,609.93,607.81,1.27905019]
[1743477342731,0.28571663,609.92,607.81,1.27905019]
[1743477343033,0.30169015,609.91,607.81,1.27905019]
[1743477344433,0.30169071,609.9,607.81,1.27905019]
[1743477344732,0.30169071,609.89,607.81,1.27905019]
[1743477345027,0.30169071,609.88,607.81,1.27905019]
[1743477345232,0.30169071,609.87,607.81,1.27905019]
[1743477345430,0.30169071,609.86,607.81,1.27905019]
[1743477345630,0.30169071,609.85,607.81,1.27905019]
[1743477345826,0.28571898,609.86,607.81,1.27905019]
[1743477346029,0.30169366,609.85,607.81,1.27905019]
[1743477346233,0.30168482,609.84,607.81,1.27905019]
[1743477346431,0.30168482,609.85,607.81,1.27905019]
[1743477346629,0.30168482,609.84,607.81,1.27905019]
[1743477346825,0.30168482,609.85,607.81,1.27905019]
[1743477347028,0.30168482,609.84,607.81,1.27905019]
[1743477347229,0.30168482,609.83,607.81,1.27905019]
[1743477347427,0.30168482,609.85,607.81,1.27905019]
[1743477347631,0.30168482,609.84,607.81,1.27905019]
[1743477347826,0.30168482,609.83,607.81,1.27905019]
[1743477348032,0.30168482,609.85,607.81,1.27905019]
[1743477348230,0.30168482,609.84,607.81,1.27905019]
[1743477348429,0.30168482,609.83,607.81,1.27905019]
[1743477348629,0.30168482,610.02,607.81,1.27905019]
[1743477348933,0.28571194,609.83,607.81,1.27905019]
[1743477349128,0.30168482,609.82,607.81,1.27905019]
[1743477349436,0.30168482,609.81,607.81,1.27905019]
[1743477350930,0.28569435,609.82,607.81,1.27905019]
[1743477351427,2.84148614,610.03,607.81,1.27905019]
[1743477351730,0.285692,609.81,607.81,1.27905019]
[1743477352133,0.32785272,610.03,607.81,1.27905019]
[1743477352434,0.285692,609.8,607.81,1.27905019]
[1743477352735,0.32785272,610.03,607.81,1.27905019]
[1743477352934,0.2856791,609.79,607.81,1.27905019]
[1743477353332,0.32785272,610.03,607.81,1.27905019]
[1743477353528,0.2856791,609.78,607.81,1.27905019]
[1743477353928,0.32785272,610.03,607.81,1.27905019]
[1743477354129,0.28568028,609.77,607.81,1.27905019]
[1743477354529,0.32785272,610.03,607.81,1.27905019]
[1743477354732,0.28568614,609.76,607.81,1.27905019]
[1743477355131,0.32785272,610.03,607.81,1.27905019]
[1743477355335,0.28568497,609.75,607.81,1.27905019]
[1743477355634,0.32785272,610.03,607.81,1.27905019]
[1743477355837,0.30164964,610.02,607.81,1.27905019]
[1743477356031,0.28568614,609.74,607.81,1.27905019]
[1743477356236,0.32785272,610.03,607.81,1.27905019]
[1743477356430,0.30165154,610.02,607.81,1.27905019]
[1743477356637,0.28568614,609.73,607.81,1.27905019]
[1743477356836,0.32785272,610.03,607.81,1.27905019]
[1743477357131,0.28568614,609.72,607.81,1.27905019]
[1743477357533,0.32785272,610.03,607.81,1.27905019]
[1743477357732,0.28568497,609.71,607.81,1.94405019]
[1743477358135,0.32785272,610.03,607.81,1.94405019]
[1743477358335,0.28568028,609.7,607.81,1.94405019]
[1743477358734,0.32785272,610.03,607.81,1.94405019]
[1743477358938,0.28568028,609.69,607.81,1.94405019]
[1743477359337,0.32785272,610.03,607.81,1.94405019]
[1743477359541,0.30163565,610.02,607.81,1.94405019]
[1743477359740,0.28568028,609.68,607.81,1.94405019]
[1743477359943,0.32785272,610.03,607.81,1.94405019]
[1743477360144,0.30162831,610.02,607.81,1.94405019]
[1743477360339,0.28568145,609.67,607.81,1.94405019]
[1743477360541,0.32785272,610.03,607.81,1.94405019]
[1743477360739,0.30163223,610.02,607.81,1.94405019]
[1743477360943,0.28568145,609.66,607.81,1.94405019]
[1743477361146,0.32785272,610.03,607.81,1.94405019]
[1743477361445,0.28568145,609.65,607.81,1.94405019]
[1743477361839,0.32785272,610.03,607.81,1.94405019]
[1743477362043,0.28567793,609.64,607.81,1.94405019]
[1743477362444,0.32785272,610.03,607.81,1.94405019]
[1743477362642,0.28567559,609.63,607.81,1.94405019]
[1743477363038,0.32785272,610.03,607.81,1.94405019]
[1743477363345,0.30160657,610.02,607.81,1.94405019]
[1743477364342,0.28565683,610.01,607.81,1.94405019]
[1743477364542,0.30160657,610.0,607.81,1.94405019]
[1743477366648,0.30160657,610.02,607.81,1.94405019]
[1743477366847,0.28565683,609.99,607.81,1.94405019]
[1743477367050,0.30160657,609.98,607.81,1.94405019]
[1743477372753,0.2856451,609.97,607.81,1.94405019]
[1743477372957,0.30160657,609.96,607.81,1.94405019]
[1743477375853,0.2856451,609.97,607.81,1.94405019]
[1743477376658,0.30158876,609.96,607.81,1.94405019]
[1743477377555,0.30159158,609.95,607.81,1.94405019]
[1743477377757,0.30159158,609.96,607.81,1.94405019]
[1743477377961,0.2856451,609.97,607.81,1.94405019]
[1743477378161,0.30159307,609.96,607.81,1.94405019]
[1743477378758,0.58726514,609.95,607.81,1.94405019]
[1743477379064,0.30159307,609.94,607.81,1.94405019]
[1743477379462,0.30159307,610.55,607.81,1.94405019]
[1743477379663,0.32758423,610.53,607.81,1.94405019]
[1743477379859,0.30159307,610.52,607.81,1.94405019]
[1743477380063,0.32760032,610.5,607.81,1.94405019]
[1743477380266,0.30159307,610.49,607.81,1.94405019]
[1743477380462,0.32761642,610.47,607.81,1.94405019]
[1743477380662,0.30159307,610.46,607.81,1.94405019]
[1743477380862,0.32763252,610.44,607.81,1.94405019]
[1743477381067,0.30163069,610.43,607.81,1.94405019]
[1743477381268,0.32764862,610.41,607.81,1.94405019]
[1743477381569,0.30163069,610.4,607.81,1.94405019]
[1743477381767,0.32766473,610.38,607.81,1.94405019]
[1743477381963,0.30163069,610.37,607.81,1.94405019]
[1743477382166,0.32767547,610.36,607.81,1.94405019]
[1743477382362,0.30163069,610.35,607.81,1.94405019]
[1743477382568,0.3276862,610.34,607.81,1.94405019]
[1743477382767,0.30163069,610.33,607.81,1.94405019]
[1743477382962,0.32769694,610.32,607.81,1.94405019]
[1743477383166,0.30163069,610.31,607.81,1.94405019]
[1743477383464,0.32770768,610.3,607.81,1.94405019]
[1743477383667,0.30163069,610.29,607.81,1.94405019]
[1743477383869,0.32771842,610.28,607.81,1.94405019]
[1743477384069,0.30163069,610.27,607.81,1.94405019]
[1743477384271,0.32772916,610.26,607.81,1.94405019]
[1743477384467,0.30163069,610.25,607.81,1.94405019]
[1743477384769,0.3277399,610.24,607.81,1.94405019]
[1743477384969,0.30163069,610.23,607.81,1.94405019]
[1743477385163,0.32775064,610.22,607.81,1.94405019]
[1743477385366,0.30163069,610.21,607.81,1.94405019]
[1743477385562,0.32776138,610.2,607.81,1.94405019]
[1743477385769,0.30163069,610.19,607.81,1.94405019]
[1743477385965,0.32777213,610.18,607.81,1.94405019]
[1743477386268,0.30163069,610.17,607.81,1.94405019]
[1743477387568,0.32777213,610.18,607.81,1.94405019]
[1743477387569,0.30163432,610.16,607.81,1.94405019]
[1743477387769,0.28566503,610.16,607.81,1.94405019]
[1743477387972,0.30163432,610.15,607.81,1.94405019]
[1743477390768,0.58728763,610.14,607.81,1.94405019]
[1743477390965,0.30163432,610.13,607.81,1.94405019]
[1743477392475,0.30160155,610.12,607.81,1.94405019]
[1743477392676,0.30160155,610.11,607.81,1.94405019]
[1743477392878,0.30160155,610.13,607.81,1.94405019]
[1743477393078,0.30160155,610.12,607.81,1.94405019]
[1743477393279,0.30160155,610.13,607.81,1.94405019]
[1743477393479,0.30160155,610.12,607.81,1.94405019]
[1743477393681,0.30160155,610.11,607.81,1.94405019]
[1743477393877,0.28564159,610.12,607.81,1.94405019]
[1743477394078,0.30160155,610.11,607.81,1.94405019]
[1743477395679,0.28564159,610.12,607.81,1.94405019]
[1743477395876,0.3015941,610.11,607.81,1.94405019]
[1743477396679,0.3015941,610.17,607.81,1.94405019]
[1743477396878,0.28564393,610.1,607.81,1.94405019]
[1743477397182,0.3015941,610.09,607.81,1.94405019]
[1743477398980,0.30158836,610.08,607.81,1.94405019]
[1743477399285,0.30158836,610.07,607.81,1.94405019]
[1743477399584,0.30158836,610.06,607.81,1.94405019]
[1743477399787,0.30158836,610.05,607.81,1.94405019]
[1743477402185,0.28564627,610.06,607.81,1.94405019]
[1743477402386,0.30158348,610.05,607.81,1.94405019]
[1743477405893,0.2856369,610.04,607.81,1.94405019]
[1743477406192,0.30158348,610.03,607.81,1.94405019]
[1743477406593,0.30158348,610.03,607.82,2.50341695]
[1743477406787,0.30158348,610.03,607.93,0.32898524]
[1743477407189,0.30155445,610.02,607.93,0.32898524]
[1743477407389,0.30155445,610.03,607.93,0.32898524]
[1743477407690,0.30155445,610.02,607.93,0.32898524]
[1743477407891,0.30155445,610.03,607.93,0.32898524]
[1743477408690,0.30155445,610.17,607.93,0.32898524]
[1743477408888,0.2856369,610.02,607.93,0.32898524]
[1743477409195,0.30155722,610.01,607.93,0.32898524]
[1743477409387,0.30155722,610.0,607.93,0.73498524]
[1743477409789,0.30155722,610.0,607.93,1.39998524]
[1743477410295,0.28562283,610.01,607.93,1.39998524]
[1743477410989,0.28562283,610.01,607.93,1.94398524]
[1743477411495,2.51363342,610.44,607.93,1.94398524]
[1743477411690,0.30144017,610.43,607.93,1.94398524]
[1743477411897,0.28554783,610.0,607.93,1.94398524]
[1743477412097,2.51363342,610.44,607.93,1.94398524]
[1743477412298,0.30146339,610.43,607.93,1.94398524]
[1743477412497,0.2855326,609.99,607.93,1.94398524]
[1743477412699,2.51363342,610.44,607.93,1.94398524]
[1743477412892,0.30144771,610.43,607.93,1.94398524]
[1743477413098,0.2855326,609.98,607.93,1.94398524]
[1743477413293,2.51363342,611.12,607.93,1.94398524]
[1743477413495,0.32732152,611.02,607.93,1.94398524]
[1743477413694,0.28550918,609.97,607.93,1.94398524]
[1743477413894,0.32732152,611.02,607.93,1.94398524]
[1743477414095,0.3014345,611.01,607.93,1.94398524]
[1743477414297,0.32733759,610.99,607.93,1.94398524]
[1743477414494,0.3014345,610.98,607.93,1.94398524]
[1743477414694,0.32735367,610.96,607.93,1.94398524]
[1743477414895,0.3014345,610.95,607.93,1.94398524]
[1743477415201,0.32736974,610.93,607.93,1.94398524]
[1743477415400,0.3014345,610.92,607.93,1.94398524]
[1743477415598,0.32738582,610.9,607.93,1.94398524]
[1743477415796,0.3014345,610.89,607.93,1.94398524]
[1743477416000,0.3274019,610.87,607.93,1.94398524]
[1743477416198,0.3014345,610.86,607.93,1.94398524]
[1743477416403,0.32741798,610.84,607.93,1.94398524]
[1743477416602,0.3014345,610.83,607.93,1.94398524]
[1743477416803,0.6288632,610.82,607.93,1.94398524]
[1743477417003,0.62886856,610.81,607.93,1.94398524]
[1743477417201,0.62887392,610.8,607.93,1.94398524]
[1743477417403,0.62887928,610.79,607.93,1.94398524]
[1743477417602,0.62888464,610.78,607.93,1.94398524]
[1743477417807,0.62889,610.77,607.93,1.94398524]
[1743477418008,0.62889536,610.76,607.93,1.94398524]
[1743477418209,0.62890073,610.75,607.93,1.94398524]
[1743477418403,0.62890609,610.74,607.93,1.94398524]
[1743477418601,0.62891145,610.73,607.93,1.94398524]
[1743477418806,0.32748231,610.72,607.93,1.94398524]
[1743477419004,0.30143015,610.71,607.93,1.94398524]
[1743477419206,0.62892319,610.7,607.93,1.94398524]
[1743477419508,0.62892855,610.69,607.93,1.94398524]
[1743477419709,0.62893391,610.68,607.93,1.94398524]
[1743477419905,0.62893927,610.67,607.93,1.94398524]
[1743477420108,0.62894464,610.66,607.93,1.94398524]
[1743477420304,0.62895,610.65,607.93,1.94398524]
[1743477420502,0.62895536,610.64,607.93,1.94398524]
[1743477420702,0.62896073,610.63,607.93,1.94398524]
[1743477420902,0.62896609,610.62,607.93,1.94398524]
[1743477421105,0.62897146,610.61,607.93,1.94398524]
[1743477421309,0.62897682,610.6,607.93,1.94398524]
[1743477421510,0.30143015,610.59,607.93,1.94398524]
[1743477421710,0.30143015,610.58,607.93,1.94398524]
[1743477421911,0.30143015,610.57,607.93,1.94398524]
[1743477422111,0.30143015,610.59,607.93,1.94398524]
[1743477422311,0.30143015,610.58,607.93,1.94398524]
[1743477422512,0.30143015,610.59,607.93,1.94398524]
[1743477422711,0.30143015,610.58,607.93,1.94398524]
[1743477422912,0.32754667,610.6,607.93,1.94398524]
[1743477422913,0.30143015,610.57,607.93,1.94398524]
[1743477423106,0.32754667,610.6,607.93,1.94398524]
[1743477423107,0.30143015,610.59,607.93,1.94398524]
[1743477423305,0.30143015,610.58,607.93,1.94398524]
[1743477423512,0.30143015,610.57,607.93,1.94398524]
[1743477423706,0.30143015,610.59,607.93,1.94398524]
[1743477423909,0.30143015,610.58,607.93,1.94398524]
[1743477424109,0.30143015,610.57,607.93,1.94398524]
[1743477424309,0.30143015,610.59,607.93,1.94398524]
[1743477424507,0.30143015,610.58,607.93,1.94398524]
[1743477424708,0.30143015,610.59,607.93,1.94398524]
[1743477424911,0.30143015,610.58,607.93,1.94398524]
[1743477425212,0.32754667,610.6,607.93,1.94398524]
[1743477425213,0.30143015,610.57,607.93,1.94398524]
[1743477425412,0.30143015,610.59,607.93,1.94398524]
[1743477426814,0.28547522,610.58,607.93,1.94398524]
[1743477427014,0.30143015,610.57,607.93,1.94398524]
[1743477428214,0.30141523,610.56,607.93,1.94398524]
[1743477428415,0.30141523,610.55,607.93,1.94398524]
[1743477428613,0.30141523,610.57,607.93,1.94398524]
[1743477428815,0.30141523,610.56,607.93,1.94398524]
[1743477429116,0.30141523,610.55,607.93,1.94398524]
[1743477429315,0.30141523,610.57,607.93,1.94398524]
[1743477429715,0.28547522,610.58,607.93,1.94398524]
[1743477430013,0.30136908,610.57,607.93,1.94398524]
[1743477431014,0.30136908,610.56,607.93,1.94398524]
[1743477431219,0.30136908,610.55,607.93,1.94398524]
[1743477431415,0.28547522,610.58,607.93,3.82414123]
[1743477431416,0.30136908,610.54,607.93,3.82414123]
[1743477431617,0.30136908,610.53,608.1,2.50341695]
[1743477431813,0.30136908,610.57,608.22,0.32882838]
[1743477432012,0.28547522,610.58,608.22,0.32882838]
[1743477432013,0.30136908,610.56,608.22,0.32882838]
[1743477432217,0.30136908,610.55,608.22,0.32882838]
[1743477432418,0.30136908,610.54,608.22,0.32882838]
[1743477432617,0.28547522,610.58,608.22,0.32882838]
[1743477432618,0.30136908,610.57,608.22,0.32882838]
[1743477432814,0.28547522,610.58,608.22,0.32882838]
[1743477432815,0.30136908,610.56,608.22,0.32882838]
[1743477433019,0.30136908,610.57,608.22,0.32882838]
[1743477433219,0.30136908,610.56,608.22,0.32882838]
[1743477433419,0.30136908,610.55,608.22,0.32882838]
[1743477433723,0.30136908,610.54,608.22,0.32882838]
[1743477433920,0.28547522,610.58,608.22,0.32882838]
[1743477433921,0.30136908,610.57,608.22,0.32882838]
[1743477434217,0.30136908,610.56,608.22,0.32882838]
[1743477434423,0.30136908,610.57,608.22,0.32882838]
[1743477434623,0.30136908,610.56,608.22,0.32882838]
[1743477434822,0.30136908,610.57,608.22,0.32882838]
[1743477435023,0.30136908,610.56,608.22,0.32882838]
[1743477435224,0.30136908,610.55,608.22,0.32882838]
[1743477435525,0.30136908,610.54,608.23,0.543]
[1743477435723,0.30136908,610.59,608.34,0.32876352]
[1743477436024,0.28544946,610.54,608.34,0.32876352]
[1743477436218,0.30136908,610.53,608.35,0.406]
[1743477436422,0.30136908,610.53,608.45,0.32870408]
[1743477438719,0.58682322,610.52,608.45,0.32870408]
[1743477438921,0.30136908,610.51,608.45,0.32870408]
[1743477441323,0.30143784,610.5,608.45,0.32870408]
[1743477441523,0.30143784,610.51,608.45,0.32870408]
[1743477441720,0.28546351,610.49,608.45,0.32870408]
[1743477441925,0.30143784,610.48,608.45,0.32870408]
[1743477444629,0.30143784,610.48,608.46,0.665]
[1743477444824,0.30143784,610.48,608.56,0.32864466]
[1743477447624,0.30143784,610.47,608.56,0.32864466]
[1743477447830,0.28541902,610.47,608.56,0.32864466]
[1743477448030,0.30143784,610.46,608.56,0.32864466]
[1743477449427,0.30138894,610.45,608.56,0.32864466]
[1743477449624,0.30138894,610.46,608.56,0.32864466]
[1743477449824,0.28541902,610.47,608.56,0.32864466]
[1743477450028,0.30138694,610.46,608.56,0.32864466]
[1743477450225,0.28541902,610.47,608.56,0.73464466]
[1743477450426,0.32754667,610.6,608.56,0.73464466]
[1743477450630,0.30138601,610.59,608.56,0.73464466]
[1743477450826,0.28539913,610.46,608.56,0.73464466]
[1743477451233,0.30143529,610.45,608.56,0.73464466]
[1743477451532,0.30143529,610.44,608.56,0.73464466]
[1743477452634,0.28543073,610.45,608.56,0.73464466]
[1743477452834,0.30144109,610.44,608.56,0.73464466]
[1743477453635,0.30144109,610.59,608.56,0.73464466]
[1743477453838,0.28544712,610.43,608.56,0.73464466]
[1743477454233,0.32755203,610.59,608.56,0.73464466]
[1743477454439,0.28543073,610.42,608.56,0.73464466]
[1743477454833,0.32755203,610.59,608.56,0.73464466]
[1743477455033,0.2854319,610.41,608.56,0.73464466]
[1743477455538,0.32755203,610.59,608.56,0.73464466]
[1743477455735,0.2854319,610.4,608.56,0.73464466]
[1743477455940,0.32755203,610.59,608.56,0.73464466]
[1743477455941,0.30144747,610.39,608.56,0.73464466]
[1743477456141,0.30144747,610.58,608.56,0.73464466]
[1743477456342,0.28544946,610.39,608.56,0.73464466]
[1743477456538,0.62901023,610.57,608.56,0.73464466]
[1743477456539,0.30144747,610.38,608.56,0.73464466]
[1743477456740,0.6290156,610.56,608.56,0.73464466]
[1743477456939,0.2854518,610.38,608.56,0.73464466]
[1743477457139,0.30144747,610.37,608.56,0.73464466]
[1743477457435,0.28545414,610.37,608.56,0.73464466]
[1743477457741,0.3014708,610.36,608.56,0.73464466]
[1743477462142,0.28545414,610.37,608.56,0.73464466]
[1743477462343,0.30148412,610.36,608.56,0.73464466]
[1743477463744,0.28545414,610.37,608.56,0.73464466]
[1743477463945,0.30148312,610.36,608.56,1.27664466]
[1743477465740,0.30148312,610.53,608.56,1.27664466]
[1743477466039,0.28549395,610.35,608.56,1.27664466]
[1743477466241,0.30148312,610.34,608.56,1.27664466]
[1743477466551,0.30148312,610.33,608.56,1.27664466]
[1743477468738,2.51363342,610.46,608.56,1.27664466]
[1743477468938,0.28549044,610.32,608.56,1.27664466]
[1743477469140,0.30148312,610.31,608.56,1.27664466]
[1743477469341,0.30148312,610.3,608.56,1.27664466]
[1743477469538,0.28547756,610.31,608.56,1.27664466]
[1743477469741,0.30148312,610.3,608.56,1.27664466]
[1743477471648,0.30148312,610.41,608.56,1.27664466]
[1743477471848,0.28549161,610.29,608.56,1.27664466]
[1743477472143,0.30148312,610.28,608.56,1.27664466]
[1743477472349,0.30148312,610.27,608.56,1.27664466]
[1743477473350,0.3014819,610.26,608.56,1.27664466]
[1743477473650,0.3014819,610.25,608.56,1.27664466]
[1743477473848,0.3014819,610.27,608.56,1.27664466]
[1743477474048,0.3014819,610.26,608.56,1.27664466]
[1743477474251,0.3014819,610.27,608.56,1.27664466]
[1743477474548,0.3014819,610.26,608.56,1.27664466]
[1743477474951,0.3014819,610.25,608.56,1.27664466]
[1743477475151,0.28547522,610.25,608.56,1.27664466]
[1743477475348,0.3014819,610.24,608.56,1.27664466]
[1743477475548,0.3014819,610.24,608.56,1.94164466]
[1743477477747,0.3014819,610.23,608.56,1.94164466]
[1743477477949,0.3014819,610.22,608.56,1.94164466]
[1743477478951,0.3014819,610.21,608.56,1.94164466]
[1743477479150,0.28551152,610.23,608.56,1.94164466]
[1743477479351,0.30154532,610.22,608.56,1.94164466]
[1743477479653,0.30154566,610.21,608.56,1.94164466]
[1743477479844,0.30154566,610.2,608.56,1.94164466]
[1743477480045,0.30154566,610.21,608.56,1.94164466]
[1743477480250,0.30154566,610.2,608.56,1.94164466]
[1743477480451,0.30154566,610.21,608.56,1.94164466]
[1743477480847,2.51363342,610.22,608.56,1.94164466]
[1743477481048,0.30153871,610.21,608.56,1.94164466]
[1743477482662,0.30153871,610.2,608.56,1.94164466]
[1743477482961,0.30153871,610.19,608.56,1.94164466]
[1743477483162,0.30153871,610.22,608.56,1.94164466]
[1743477483359,0.30153871,610.21,608.56,1.94164466]
[1743477483557,0.30153871,610.22,608.56,1.94164466]
[1743477487164,0.30153264,610.21,608.56,1.94164466]
[1743477487561,0.30153264,610.2,608.56,1.94164466]
[1743477487758,0.30153264,610.22,608.56,1.94164466]
[1743477487962,0.30153264,610.21,608.56,1.94164466]
[1743477488362,0.30153264,610.2,608.56,1.94164466]
[1743477488561,0.30153264,610.22,608.56,1.94164466]
[1743477489159,2.81516606,610.22,608.56,1.94164466]
[1743477489359,0.30153264,610.21,608.56,1.94164466]
[1743477489961,0.28551855,610.2,608.56,1.94164466]
[1743477490167,0.30153264,610.19,608.56,1.94164466]
[1743477491665,2.79915197,610.2,608.56,1.94164466]
[1743477491860,0.30154591,610.19,608.56,1.94164466]
[1743477492466,2.51363342,610.15,608.56,1.94164466]
[1743477492667,0.30155425,610.14,608.56,1.94164466]
[1743477493865,0.30155425,610.19,608.56,1.94164466]
[1743477494068,0.30155425,610.18,608.56,1.94164466]
[1743477494266,0.30155425,610.19,608.56,1.94164466]
[1743477494464,0.30155425,610.18,608.56,1.94164466]
[1743477494768,0.30155425,610.17,608.56,1.94164466]
[1743477494968,0.30155425,610.19,608.56,1.94164466]
[1743477495170,0.30155425,610.18,608.56,1.94164466]
[1743477495367,0.30155425,610.19,608.56,1.94164466]
[1743477495565,0.30155425,610.18,608.56,1.94164466]